fUST/lending_fUST_20250913
["ID","MTS","AMOUNT","RATE_DAILY","PERIOD"]
[385269058,1757718638289,-643.31730281,0.00023973,2]
[385269059,1757718638300,-658.2987274,0.00023973,2]
[385269097,1757718640178,-664.36992257,0.00022174,2]
[385269148,1757718642235,-60.32191489,0.00022174,2]
[385269179,1757718646484,-82.39960995,0.00022174,2]
[385269181,1757718646494,-9131.2891245,0.00023973,2]
[385269182,1757718646503,-1824.41441564,0.00024007,2]
[385270302,1757718776151,161.83016,0.00013699,2]
[385270308,1757719445044,-169.95145636,0.00017726,2]
[385270309,1757719445577,-16.85371472,0.00017905,2]
[385270325,1757719594076,930.1,0.00027397,120]
[385270332,1757719632690,297.0,0.00027397,120]
[385270339,1757719714055,566.37406529,0.00024,30]
[385270358,1757719809765,161.83016,0.00013699,2]
[385270378,1757719832425,-4441.3856716,0.00016689,7]
[385270379,1757719832435,-169.95145636,0.00016858,2]
[385270380,1757719832445,-169.95145636,0.00017028,2]
[385270382,1757719832456,-169.95145636,0.00017274,2]
[385270383,1757719832465,-160.0,0.00019888,2]
[385270384,1757719832474,-1487.14773435,0.000199,2]
[385270385,1757719832483,-1200.0,0.00021148,2]
[385270386,1757719832493,-1487.14773412,0.00021149,2]
[385270387,1757719832502,-471.51638095,0.00021311,7]
[385270388,1757719832511,-300.0,0.00021566,2]
[385270389,1757719832520,-300.0,0.00021566,2]
[385270390,1757719832529,-300.0,0.00021566,2]
[385270391,1757719832538,-300.0,0.00021566,2]
[385270392,1757719832550,-1200.0,0.00021567,2]
[385270393,1757719832560,-300.0,0.00021571,20]
[385270394,1757719832569,-300.0,0.00021571,20]
[385270395,1757719832579,-300.0,0.00021571,20]
[385270397,1757719832698,-300.0,0.00021571,20]
[385270398,1757719832708,-300.0,0.00021571,20]
[385270399,1757719832717,-300.0,0.00021571,20]
[385270400,1757719832727,-300.0,0.00021571,20]
[385270401,1757719832736,-300.0,0.00021571,20]
[385270402,1757719832746,-300.0,0.00021571,20]
[385270403,1757719832755,-300.0,0.00021571,20]
[385270404,1757719832764,-300.0,0.00021571,20]
[385270405,1757719832774,-300.0,0.00021571,20]
[385270406,1757719832783,-300.0,0.00021571,20]
[385270407,1757719832793,-300.0,0.00021571,20]
[385270408,1757719832802,-300.0,0.00021571,20]
[385270409,1757719832811,-40283.48623733,0.000218,2]
[385270410,1757719832823,-8238.67987469,0.000218,2]
[385270411,1757719832833,-165.76849492,0.00022298,2]
[385270412,1757719832842,-1487.14773412,0.00022398,2]
[385270413,1757719832851,-1200.0,0.0002311,2]
[385270414,1757719832860,-500.0,0.00023287,2]
[385270415,1757719832870,-500.0,0.00023287,2]
[385270416,1757719832879,-500.0,0.00023287,2]
[385270417,1757719832888,-500.0,0.00023287,2]
[385270418,1757719832897,-500.0,0.00023287,2]
[385270419,1757719832907,-402.07234269,0.00023287,2]
[385270420,1757719832916,-24900.0,0.00023288,2]
[385270421,1757719832926,-151.0,0.00023288,7]
[385270422,1757719832935,-151.0,0.00023288,7]
[385270423,1757719832944,-151.0,0.00023288,7]
[385270424,1757719832954,-151.0,0.00023288,7]
[385270425,1757719832964,-151.0,0.00023288,7]
[385270426,1757719832974,-165.76849492,0.00023399,2]
[385270427,1757719832985,-1200.0,0.00023447,2]
[385270428,1757719832996,-2603.3380711,0.00023626,2]
[385270429,1757719833006,-1487.14773412,0.00023647,2]
[385270430,1757719833015,-164.39,0.00023785,5]
[385270431,1757719833024,-165.76849492,0.00024501,2]
[385270432,1757719833033,-1487.14773412,0.00024896,2]
[385270433,1757719833042,-185.609655,0.00025172,15]
[385270434,1757719833052,-165.76849492,0.00025602,2]
[385270435,1757719833061,-233.13074058,0.00025631,2]
[385270436,1757719833071,-160.0,0.00025631,2]
[385270437,1757719833081,-217.7145751,0.00025631,2]
[385270438,1757719833090,-847.0429734,0.00025631,2]
[385270439,1757719833100,-2030.296672,0.00025639,2]
[385270440,1757719833109,-168.3888056,0.00025639,2]
[385270441,1757719833118,-185.609655,0.00025794,2]
[385270442,1757719833127,-151.0,0.0002599,7]
[385270443,1757719833137,-151.0,0.0002599,7]
[385270444,1757719833146,-151.783823,0.0002599,7]
[385270445,1757719833156,-151.0,0.0002599,7]
[385270446,1757719833165,-151.0,0.0002599,7]
[385270447,1757719833174,-151.0,0.0002599,7]
[385270448,1757719833183,-151.0,0.0002599,7]
[385270449,1757719833192,-151.0,0.0002599,7]
[385270450,1757719833202,-5562.313738,0.0002599,2]
[385270451,1757719833211,-151.0,0.0002599,7]
[385270452,1757719833220,-151.0,0.0002599,7]
[385270453,1757719833230,-151.0,0.0002599,7]
[385270454,1757719833239,-151.0,0.0002599,7]
[385270455,1757719833248,-151.0,0.0002599,7]
[385270456,1757719833257,-151.0,0.0002599,7]
[385270457,1757719833267,-151.0,0.0002599,7]
[385270458,1757719833276,-151.0,0.0002599,7]
[385270459,1757719833286,-188.560759,0.0002599,7]
[385270460,1757719833296,-151.0,0.0002599,7]
[385270461,1757719833306,-151.0,0.0002599,7]
[385270462,1757719833315,-151.0,0.0002599,7]
[385270463,1757719833325,-151.0,0.0002599,7]
[385270464,1757719833334,-151.0,0.0002599,7]
[385270465,1757719833344,-2695.0,0.00025991,2]
[385270466,1757719833354,-409.0,0.00025992,2]
[385270467,1757719833363,-500.0,0.00026027,2]
[385270468,1757719833373,-500.0,0.00026027,2]
[385270469,1757719833383,-500.0,0.00026027,2]
[385270470,1757719833392,-161.83016,0.00026027,2]
[385270471,1757719833401,-1487.14773412,0.00026145,4]
[385270472,1757719833411,-500.0,0.00026179,2]
[385270473,1757719833420,-908.53162627,0.0002618,2]
[385270474,1757719833429,-600.0,0.00026311,20]
[385270475,1757719833439,-157.67052,0.0002638,15]
[385270476,1757719833448,-5480.17024081,0.00026625,2]
[385270477,1757719833459,-1393.36376732,0.00026625,2]
[385270478,1757719833468,-151.0,0.00026635,7]
[385270479,1757719833477,-307.939585,0.00026635,7]
[385270480,1757719833486,-307.939585,0.00026635,7]
[385270481,1757719833495,-307.939585,0.00026635,7]
[385270482,1757719833504,-307.939585,0.00026635,7]
[385270483,1757719833513,-151.0,0.00026635,7]
[385270484,1757719833523,-151.0,0.00026635,7]
[385270485,1757719833532,-151.0,0.00026635,7]
[385270486,1757719833541,-151.0,0.00026635,7]
[385270487,1757719833553,-151.0,0.00026635,7]
[385270488,1757719833562,-151.0,0.00026635,7]
[385270489,1757719833571,-151.0,0.00026635,7]
[385270490,1757719833580,-151.0,0.00026635,7]
[385270491,1757719833590,-151.0,0.00026635,7]
[385270492,1757719833599,-151.0,0.00026635,7]
[385270493,1757719833608,-151.0,0.00026644,7]
[385270494,1757719833618,-151.0,0.00026645,7]
[385270495,1757719833627,-151.0,0.00026645,7]
[385270496,1757719833637,-151.0,0.00026645,7]
[385270497,1757719833646,-151.0,0.00026645,7]
[385270498,1757719833655,-151.0,0.00026645,7]
[385270499,1757719833664,-151.0,0.00026645,7]
[385270500,1757719833673,-153.306525,0.00026645,7]
[385270501,1757719833682,-151.0,0.00026645,7]
[385270502,1757719833691,-151.0,0.00026645,7]
[385270503,1757719833700,-151.0,0.00026645,7]
[385270504,1757719833709,-151.0,0.00026645,2]
[385270505,1757719833718,-151.0,0.00026645,7]
[385270506,1757719833727,-151.0,0.00026645,7]
[385270507,1757719833737,-151.0,0.00026645,7]
[385270508,1757719833746,-151.0,0.00026645,7]
[385270509,1757719833756,-166.932687,0.00026645,7]
[385270510,1757719833766,-157.966211,0.00026645,7]
[385270511,1757719833775,-157.966211,0.00026645,7]
[385270512,1757719833784,-157.966211,0.00026645,7]
[385270513,1757719833793,-157.966211,0.00026645,7]
[385270514,1757719833803,-182.178587,0.00026645,7]
[385270515,1757719833811,-151.0,0.00026645,7]
[385270516,1757719833821,-182.178587,0.00026645,7]
[385270517,1757719833830,-182.178587,0.00026645,7]
[385270518,1757719833839,-151.0,0.00026645,7]
[385270519,1757719833849,-182.178587,0.00026645,7]
[385270520,1757719833858,-151.0,0.00026645,7]
[385270521,1757719833868,-151.0,0.00026645,7]
[385270522,1757719833877,-205.326751,0.00026645,7]
[385270523,1757719833886,-262.345444,0.00026645,7]
[385270524,1757719833896,-205.326751,0.00026645,7]
[385270525,1757719833905,-205.326751,0.00026645,7]
[385270526,1757719833915,-205.326751,0.00026645,7]
[385270527,1757719833924,-151.0,0.00026645,7]
[385270528,1757719833933,-151.0,0.00026645,7]
[385270529,1757719833943,-151.0,0.00026645,7]
[385270530,1757719833952,-168.0,0.00026654,2]
[385270531,1757719833961,-151.0,0.00026658,7]
[385270532,1757719833971,-151.0,0.00026658,7]
[385270533,1757719833981,-151.0,0.00026658,7]
[385270534,1757719833990,-600.0,0.00026671,2]
[385270535,1757719833999,-151.0,0.00026675,7]
[385270536,1757719834009,-151.0,0.00026683,7]
[385270537,1757719834018,-151.0,0.00026683,7]
[385270538,1757719834027,-151.0,0.00026683,7]
[385270539,1757719834036,-151.0,0.00026683,7]
[385270540,1757719834045,-151.0,0.00026683,7]
[385270541,1757719834054,-151.0,0.00026683,7]
[385270542,1757719834063,-151.0,0.00026683,7]
[385270543,1757719834073,-151.0,0.00026683,7]
[385270544,1757719834082,-151.000003,0.00026683,7]
[385270545,1757719834092,-151.0,0.00026683,7]
[385270546,1757719834101,-151.0,0.00026683,7]
[385270547,1757719834110,-151.0,0.00026686,7]
[385270548,1757719834119,-151.0,0.00026686,7]
[385270549,1757719834128,-151.0,0.00026686,7]
[385270550,1757719834138,-151.0,0.00026686,7]
[385270551,1757719834146,-151.0,0.00026686,7]
[385270552,1757719834155,-847.0429734,0.00026686,7]
[385270553,1757719834164,-217.7145751,0.00026686,7]
[385270554,1757719834173,-233.13074058,0.00026686,7]
[385270555,1757719834182,-151.0,0.00026686,7]
[385270556,1757719834191,-151.0,0.00026686,7]
[385270557,1757719834200,-151.0,0.00026686,7]
[385270558,1757719834209,-151.0,0.00026686,7]
[385270559,1757719834219,-151.0,0.00026686,7]
[385270560,1757719834228,-151.0,0.00026686,7]
[385270561,1757719834237,-151.0,0.00026686,7]
[385270562,1757719834246,-151.0,0.00026686,7]
[385270563,1757719834255,-151.0,0.00026686,7]
[385270564,1757719834264,-151.0,0.000267,11]
[385270565,1757719834355,-151.0,0.000267,12]
[385270566,1757719834365,-165.76849492,0.00026703,2]
[385270567,1757719834374,-607.91,0.00026715,3]
[385270568,1757719834384,-151.0,0.00026715,7]
[385270569,1757719834394,-151.0,0.00026716,7]
[385270570,1757719834404,-167.333707,0.00026716,7]
[385270571,1757719834414,-152.461785,0.00026716,7]
[385270572,1757719834423,-151.0,0.00026716,7]
[385270573,1757719834433,-307.939585,0.00026716,7]
[385270574,1757719834442,-307.939585,0.00026716,7]
[385270575,1757719834452,-307.939585,0.00026716,7]
[385270576,1757719834462,-307.939585,0.00026716,7]
[385270577,1757719834471,-182.178587,0.00026716,7]
[385270578,1757719834481,-151.0,0.00026716,7]
[385270579,1757719834490,-182.178587,0.00026716,7]
[385270580,1757719834499,-182.178587,0.00026716,7]
[385270581,1757719834509,-151.0,0.00026716,7]
[385270582,1757719834518,-182.178587,0.00026716,7]
[385270583,1757719834527,-151.0,0.00026716,7]
[385270584,1757719834537,-151.0,0.00026716,7]
[385270585,1757719834546,-205.326751,0.00026716,7]
[385270586,1757719834560,-205.326751,0.00026716,7]
[385270587,1757719834569,-205.326751,0.00026716,7]
[385270588,1757719834577,-205.326751,0.00026716,7]
[385270589,1757719834586,-151.0,0.00026716,7]
[385270590,1757719834598,-151.0,0.00026716,7]
[385270591,1757719834607,-151.0,0.00026716,7]
[385270592,1757719834617,-197.11994569,0.00026724,2]
[385270593,1757719834628,-180.15193814,0.00026724,2]
[385270594,1757719834638,-37105.5964164,0.00026725,2]
[385270595,1757719834651,-480.18664145,0.00026725,2]
[385270596,1757719834663,-1592.04680296,0.00026725,2]
[385270597,1757719834674,-4822.70317029,0.00026725,2]
[385270600,1757719838230,-151.0,0.00023288,7]
[385270601,1757719838240,-151.0,0.0002599,7]
[385270602,1757719838249,-151.0,0.00026625,7]
[385270603,1757719838258,-151.0,0.00026671,7]
[385270604,1757719838267,-1304.16636108,0.00026725,2]
[385270608,1757719838324,-721.32276525,0.00026725,2]
[385270610,1757719838335,-638.55,0.00026725,2]
[385270612,1757719838347,-274.81808276,0.00026725,2]
[385270614,1757719838424,-7260.50587654,0.00026725,2]
[385270644,1757719840435,-1611.13363937,0.00023055,7]
[385270645,1757719840444,-7891.59557012,0.00026725,2]
[385270658,1757719844695,-542.63564142,0.00026725,2]
[385270659,1757719844718,-1021.14099215,0.00026725,2]
[385270660,1757719844743,-18706.14678526,0.00026725,2]
[385270686,1757719846531,-4485.3398345,0.00026725,2]
[385270687,1757719846706,-3958.17121636,0.00026725,2]
[385270699,1757720798599,161.83016,0.00013699,2]
[385270729,1757721032780,-275.38420601,0.00016063,2]
[385270730,1757721032789,-1000.0,0.00016849,2]
[385270736,1757721032799,-300.0,0.00017121,2]
[385270737,1757721032900,-5000.0,0.00017272,7]
[385270738,1757721032909,-300.0,0.00017294,2]
[385270740,1757721032919,-167.72585857,0.00017546,2]
[385270742,1757721032928,-1200.0,0.00017645,2]
[385270743,1757721032938,-1200.0,0.00018002,2]
[385270746,1757721032947,-456.930412,0.00018085,2]
[385270748,1757721032956,-300.0,0.00018184,2]
[385270750,1757721032966,-300.0,0.00018184,2]
[385270752,1757721032975,-300.0,0.00018184,2]
[385270753,1757721032984,-300.0,0.00018184,2]
[385270754,1757721032993,-20969.30408782,0.00018185,2]
[385270755,1757721033022,-440.0,0.00018185,2]
[385270756,1757721033033,-1796.78135078,0.00018185,2]
[385270757,1757721033061,-3526.01856001,0.00018185,2]
[385270758,1757721033082,-23267.89600139,0.00018185,2]
[385270759,1757721033091,-2119.2443824,0.00018369,2]
[385270760,1757721033101,-1542.0,0.0001926,2]
[385270761,1757721033110,-1570.36114296,0.00019309,2]
[385270762,1757721033120,-167.72585856,0.0001935,2]
[385270763,1757721033130,-4886.33022078,0.00019374,2]
[385270764,1757721033141,-456.93041193,0.00019634,2]
[385270765,1757721033151,-1200.0,0.00019739,2]
[385270766,1757721033161,-300.0,0.00019837,2]
[385270767,1757721033171,-332.0,0.00019837,2]
[385270768,1757721033181,-300.0,0.00019837,2]
[385270769,1757721033190,-300.0,0.00019837,2]
[385270770,1757721033200,-1190.47093706,0.000199,2]
[385270771,1757721033211,-500.0,0.00020193,2]
[385270772,1757721033221,-500.0,0.00020193,2]
[385270773,1757721033232,-500.0,0.00020193,2]
[385270774,1757721033242,-500.0,0.00020193,2]
[385270775,1757721033252,-500.0,0.00020193,2]
[385270776,1757721033262,-500.0,0.00020193,2]
[385270777,1757721033272,-500.0,0.00020193,2]
[385270778,1757721033282,-539.97757753,0.00020193,2]
[385270779,1757721033292,-500.0,0.00020193,2]
[385270780,1757721033303,-500.0,0.00020193,2]
[385270781,1757721033313,-500.0,0.00020193,2]
[385270782,1757721033323,-500.0,0.00020193,2]
[385270783,1757721033332,-500.0,0.00020193,2]
[385270784,1757721033342,-456.97604776,0.00020193,2]
[385270785,1757721033352,-500.0,0.00020193,2]
[385270786,1757721033361,-500.0,0.00020193,2]
[385270787,1757721033371,-500.0,0.00020193,2]
[385270788,1757721033381,-500.0,0.00020193,2]
[385270789,1757721033390,-500.0,0.00020193,2]
[385270790,1757721033399,-500.0,0.00020193,2]
[385270791,1757721033410,-500.0,0.00020193,2]
[385270792,1757721033419,-500.0,0.00020193,2]
[385270793,1757721033429,-500.0,0.00020193,2]
[385270794,1757721033438,-500.0,0.00020193,2]
[385270795,1757721033448,-201.01821545,0.00020193,2]
[385270796,1757721034223,1453.03,0.00027397,120]
[385270813,1757721038635,-298.98178455,0.00020193,2]
[385270814,1757721038645,-500.0,0.00020193,2]
[385270815,1757721038654,-500.0,0.00020193,2]
[385270816,1757721038664,-500.0,0.00020193,2]
[385270817,1757721038674,-500.0,0.00020193,2]
[385270818,1757721038684,-500.0,0.00020193,2]
[385270819,1757721038693,-500.0,0.00020193,2]
[385270821,1757721038702,-0.71821545,0.00020193,2]
[385270823,1757721038714,-499.28178455,0.00020193,2]
[385270824,1757721038724,-525.25198853,0.00020193,2]
[385270825,1757721038733,-500.0,0.00020193,2]
[385270826,1757721038743,-500.0,0.00020193,2]
[385270827,1757721038752,-500.0,0.00020193,2]
[385270828,1757721038761,-500.0,0.00020193,2]
[385270829,1757721038770,-500.0,0.00020193,2]
[385270830,1757721038779,-500.0,0.00020193,2]
[385270831,1757721038788,-500.0,0.00020193,2]
[385270832,1757721038798,-500.0,0.00020193,2]
[385270833,1757721038807,-500.0,0.00020193,2]
[385270834,1757721038817,-453.19691394,0.00020193,2]
[385270835,1757721038826,-500.0,0.00020193,2]
[385270836,1757721038836,-500.0,0.00020193,2]
[385270837,1757721038846,-500.0,0.00020193,2]
[385270838,1757721038855,-500.0,0.00020193,2]
[385270839,1757721038865,-500.0,0.00020193,2]
[385270840,1757721038874,-500.0,0.00020193,2]
[385270841,1757721038884,-500.0,0.00020193,2]
[385270842,1757721038894,-500.0,0.00020193,2]
[385270843,1757721038903,-500.0,0.00020193,2]
[385270844,1757721038912,-500.0,0.00020193,2]
[385270845,1757721038921,-500.0,0.00020193,2]
[385270846,1757721038930,-500.0,0.00020193,2]
[385270847,1757721038940,-500.0,0.00020193,2]
[385270848,1757721038949,-500.0,0.00020193,2]
[385270849,1757721038959,-500.0,0.00020193,2]
[385270850,1757721038968,-500.0,0.00020193,2]
[385270851,1757721038978,-500.0,0.00020193,2]
[385270852,1757721038987,-500.0,0.00020193,2]
[385270853,1757721038997,-500.0,0.00020193,2]
[385270854,1757721039006,-500.0,0.00020193,2]
[385270855,1757721039015,-500.0,0.00020193,2]
[385270856,1757721039024,-21.1873457,0.00020193,2]
[385270893,1757721040867,-506.47599783,0.00020193,2]
[385270894,1757721040876,-500.0,0.00020193,2]
[385270895,1757721040885,-500.0,0.00020193,2]
[385270896,1757721040895,-500.0,0.00020193,2]
[385270898,1757721040904,-500.0,0.00020193,2]
[385270900,1757721040913,-500.0,0.00020193,2]
[385270901,1757721040923,-500.0,0.00020193,2]
[385270902,1757721040933,-500.0,0.00020193,2]
[385270903,1757721040942,-500.0,0.00020193,2]
[385270904,1757721040951,-500.0,0.00020193,2]
[385270905,1757721040960,-500.0,0.00020193,2]
[385270906,1757721040969,-500.0,0.00020193,2]
[385270907,1757721040978,-500.0,0.00020193,2]
[385270908,1757721040988,-500.0,0.00020193,2]
[385270909,1757721040997,-500.0,0.00020193,2]
[385270910,1757721041007,-500.0,0.00020193,2]
[385270911,1757721041016,-500.0,0.00020193,2]
[385270912,1757721041025,-500.0,0.00020193,2]
[385270913,1757721041035,-500.0,0.00020193,2]
[385270914,1757721041044,-500.0,0.00020193,2]
[385270915,1757721041053,-500.0,0.00020193,2]
[385270916,1757721041063,-500.0,0.00020193,2]
[385270917,1757721041072,-500.0,0.00020194,2]
[385270918,1757721041082,-151.0,0.00020194,2]
[385270919,1757721041091,-151.0,0.00020194,2]
[385270920,1757721041101,-151.745155,0.00020194,2]
[385270921,1757721041110,-151.0,0.00020194,2]
[385270922,1757721041119,-151.0,0.00020194,2]
[385270923,1757721041128,-300.0,0.00020195,20]
[385270924,1757721041138,-300.0,0.00020195,20]
[385270925,1757721041149,-300.0,0.00020195,20]
[385270926,1757721041158,-300.0,0.00020195,20]
[385270927,1757721041168,-300.0,0.00020195,20]
[385270928,1757721041178,-300.0,0.00020195,20]
[385270929,1757721041189,-300.0,0.00020195,20]
[385270930,1757721041199,-300.0,0.00020195,20]
[385270931,1757721041208,-300.0,0.00020195,20]
[385270932,1757721041220,-300.0,0.00020195,20]
[385270933,1757721041230,-300.0,0.00020195,20]
[385270934,1757721041239,-300.0,0.00020195,20]
[385270935,1757721041249,-300.0,0.00020195,20]
[385270936,1757721041258,-300.0,0.00020195,20]
[385270937,1757721041268,-300.0,0.00020195,20]
[385270938,1757721041277,-151.0,0.00020195,2]
[385270939,1757721041286,-151.0,0.00020195,2]
[385270940,1757721041296,-151.0,0.00020195,2]
[385270941,1757721041306,-151.0,0.00020195,2]
[385270942,1757721041315,-151.0,0.00020195,2]
[385270943,1757721041325,-151.0,0.00020195,2]
[385270944,1757721041334,-151.0,0.00020195,2]
[385270945,1757721041343,-151.0,0.00020195,2]
[385270946,1757721041352,-500.0,0.00020468,2]
[385270947,1757721041361,-600.0,0.00020598,20]
[385270948,1757721041370,-500.0,0.00021122,2]
[385270949,1757721041379,-500.0,0.00021122,2]
[385270950,1757721041389,-500.0,0.00021122,2]
[385270951,1757721041398,-367.04078439,0.00021137,2]
[385270952,1757721041407,-151.0,0.00021148,2]
[385270953,1757721041416,-151.0,0.00021148,2]
[385270954,1757721041426,-151.0,0.00021148,2]
[385270955,1757721041436,-151.0,0.00021148,2]
[385270956,1757721041446,-151.0,0.00021148,2]
[385270957,1757721041455,-151.0,0.00021148,2]
[385270958,1757721041465,-151.0,0.00021148,2]
[385270959,1757721041474,-151.0,0.00021148,2]
[385270960,1757721041484,-151.0,0.00021148,2]
[385270961,1757721041494,-151.0,0.00021148,2]
[385270962,1757721041503,-151.0,0.00021148,2]
[385270963,1757721041513,-151.0,0.00021148,2]
[385270964,1757721041522,-161.066428,0.00021148,2]
[385270965,1757721041532,-151.0,0.00021148,2]
[385270966,1757721041541,-151.0,0.00021148,2]
[385270967,1757721041551,-151.0,0.00021148,2]
[385270968,1757721041560,-151.0,0.00021148,2]
[385270969,1757721041680,-151.0,0.00021148,2]
[385270970,1757721041690,-151.0,0.00021148,2]
[385270971,1757721041699,-151.0,0.00021148,2]
[385270972,1757721041709,-151.0,0.00021148,2]
[385270973,1757721041718,-151.0,0.00021148,2]
[385270974,1757721041727,-151.0,0.00021148,2]
[385270975,1757721041736,-151.0,0.00021148,2]
[385270976,1757721041746,-151.0,0.00021148,2]
[385270977,1757721041755,-151.0,0.00021148,2]
[385270978,1757721041764,-151.0,0.00021148,2]
[385270979,1757721041773,-151.0,0.00021148,2]
[385270980,1757721041783,-151.0,0.00021148,2]
[385270981,1757721041792,-151.0,0.00021148,2]
[385270982,1757721041801,-1190.4709369,0.00021149,2]
[385270983,1757721041811,-456.93041193,0.00021183,2]
[385270984,1757721041820,-607.96480122,0.00022383,2]
[385270985,1757721041829,-522.2,0.00022386,3]
[385270986,1757721041838,-261.1,0.00022386,3]
[385270987,1757721041847,-783.32,0.00022387,3]
[385270988,1757721041857,-151.0,0.00022396,7]
[385270989,1757721041866,-151.0,0.00022396,7]
[385270990,1757721041877,-151.0,0.00022396,7]
[385270991,1757721041887,-151.0,0.00022396,7]
[385270992,1757721041896,-151.0,0.00022396,7]
[385270993,1757721041905,-151.0,0.00022396,7]
[385270994,1757721041915,-151.0,0.00022396,7]
[385270995,1757721041924,-151.0,0.00022396,7]
[385270996,1757721041933,-151.0,0.00022396,7]
[385270997,1757721041942,-151.0,0.00022396,7]
[385270998,1757721041952,-151.0,0.00022396,7]
[385270999,1757721041961,-151.0,0.00022396,7]
[385271000,1757721041970,-151.0,0.00022396,7]
[385271001,1757721041980,-259.780694,0.00022396,7]
[385271002,1757721041989,-151.0,0.00022396,7]
[385271003,1757721041998,-151.0,0.00022396,7]
[385271004,1757721042007,-151.0,0.00022396,7]
[385271005,1757721042017,-151.0,0.00022396,7]
[385271006,1757721042026,-151.0,0.00022396,7]
[385271007,1757721042035,-151.0,0.00022396,7]
[385271008,1757721042044,-151.0,0.00022396,7]
[385271009,1757721042053,-151.0,0.00022396,7]
[385271010,1757721042063,-151.0,0.00022396,7]
[385271011,1757721042072,-151.0,0.00022396,7]
[385271012,1757721042082,-151.0,0.00022396,7]
[385271013,1757721042092,-151.0,0.00022396,7]
[385271014,1757721042101,-222.799,0.00022396,7]
[385271015,1757721042111,-151.0,0.00022396,7]
[385271016,1757721042120,-151.0,0.00022396,7]
[385271017,1757721042129,-151.369045,0.00022396,7]
[385271018,1757721042140,-151.0,0.00022396,7]
[385271019,1757721042154,-151.0,0.00022396,7]
[385271020,1757721042163,-151.0,0.00022396,7]
[385271021,1757721042173,-153.086832,0.00022396,7]
[385271022,1757721042183,-184.763751,0.00022396,7]
[385271023,1757721042194,-184.763751,0.00022396,7]
[385271024,1757721042203,-184.763751,0.00022396,7]
[385271025,1757721042213,-184.763751,0.00022396,7]
[385271026,1757721042224,-184.763751,0.00022396,7]
[385271027,1757721042233,-184.763751,0.00022396,7]
[385271028,1757721042242,-184.763751,0.00022396,7]
[385271029,1757721042252,-184.763751,0.00022396,7]
[385271030,1757721042261,-184.763751,0.00022396,7]
[385271031,1757721042271,-184.763751,0.00022396,7]
[385271032,1757721042280,-184.763751,0.00022396,7]
[385271033,1757721042289,-184.763751,0.00022396,7]
[385271034,1757721042298,-158.657859,0.00022396,7]
[385271035,1757721042308,-151.0,0.00022396,7]
[385271036,1757721042317,-151.0,0.00022396,7]
[385271037,1757721042327,-223.14305302,0.00022396,7]
[385271038,1757721042336,-259.38171,0.00022396,7]
[385271039,1757721042345,-151.0,0.00022396,7]
[385271040,1757721042354,-151.0,0.00022396,7]
[385271041,1757721042363,-151.0,0.00022396,7]
[385271042,1757721042372,-198.92101,0.00022396,7]
[385271043,1757721042382,-151.0,0.00022397,7]
[385271044,1757721042391,-151.0,0.00022397,7]
[385271045,1757721042400,-151.0,0.00022397,7]
[385271046,1757721042410,-151.0,0.00022397,7]
[385271047,1757721042419,-151.0,0.00022397,7]